Cogmind - Beta 15 @@@ ROGUE MODE // 2025.10.08 @ 11:03:31 Player: rapskalian Result: Destroyed by S-43 Plague with Heavy Machine Gun Performance ------------- Evolutions (7) 3500 Regions Visited (15) 3000 Robots Destroyed (42) 210 Value Destroyed (1102) 1102 Prototype IDs (27) 540 Alien Tech Used (0) 0 Bonus (454) 454 TOTAL SCORE: 8806 Bonus ------- Follower Combat Kills 154 Aligned with FarCom 300 Cogmind --------- Core Integrity 0/1300 Matter 139/300 Energy 99/100 System Corruption 0% Temperature Cool (0) Movement Core (50) Location -3/Research Parts ------- > --- POWER (2) -------- (None) > --- PROPULSION (7) --- (None) > --- UTILITY (10) ----- Advanced Visual Processing Unit > --- WEAPON (2) ------- (None) > --- INVENTORY (5) ---- Improved Thermal Shield System Shield Improved Arc Projector Missile Launcher Heavy Flail Peak State ------------ > --- POWER ------------ Light Fission Core Neutrino Core > --- PROPULSION ------- Flight Unit Flight Unit VTOL Module Field Propulsion Drive Field Propulsion Drive Nuclear Pulse Array > --- UTILITY ---------- Improved Coolant Injector Lightpack 2.0 Advanced Visual Processing Unit Advanced Sensor Array Improved Signal Interpreter Improved Transmission Jammer > --- WEAPON ----------- Beamcaster Heavy Proton Cannon > --- INVENTORY -------- Light Nuclear Core Improved Deuterium Engine Flight Unit Flight Unit VTOL Module VTOL Module VTOL Module Power Amplifier Advanced Power Amplifier Advanced Power Amplifier Advanced Weight Redist. System Advanced Terrain Scanner Advanced Targeting Computer Stasis Canceller Makeshift ECM Suite Makeshift ECM Suite Improved Focal Shield Improved Thermal Shield Improved Thermal Shield Improved Hardlight Generator Improved Hardlight Generator System Shield Advanced System Restoration Module Advanced System Restoration Module Long-range Tractor Beam Improved Recalibrator Improved Arc Projector Thermic Laser Thermic Laser Beamcaster Variable Charge Gun Phase Cannon Hardcell Cannon Rocket Launcher Missile Launcher Remote Datajack Heavy Flail [Rating: 120] Favorites ----------- Power Light Ion Engine Engine Light Ion Engine Power Core Neutrino Core Reactor Light Antimatter Reactor Propulsion Flight Unit Leg Aluminum Leg Wheel Compact Wheel Flight Unit Flight Unit Utility Lightpack 2.0 Device Advanced Sensor Array Storage Lightpack 2.0 Processor Advanced Visual Processing Unit Hackware Advanced Hacking Suite Protection Reactive Plating Weapon Assault Rifle Energy Gun Small Laser Energy Cannon Heavy Proton Cannon Ballistic Gun Assault Rifle Ballistic Cannon Hardcell Cannon Launcher Missile Launcher Impact Weapon Heavy Flail Build | -11 -10 -10 -10 -9 -8 -7 -7 -7 -6 -5 -5 -5 -4 -4 -3 ------- Run | Yrd Mat Min Exi Min Mat Fac Low Low Fac Fac Upp Upp Fac Ext Res Slots Evolved 14 | . . . . . 4 2 . . 2 2 . . 2 . 2 Power 1 | . . . . . . . . . . 1 . . . . . Propulsion 5 | . . . . . 3 . . . 1 1 . . . . . Utility 8 | . . . . . 1 2 . . 1 . . . 2 . 2 Weapon . | . . . . . . . . . . . . . . . . Parts Attached 89 | 7 7 . 3 2 15 7 6 . 8 11 . . 7 7 9 Power 14 | 1 2 . . . 2 . . . 3 3 . . 1 1 1 Engine 8 | 1 2 . . . 2 . . . 2 . . . 1 . . Core 5 | . . . . . . . . . 1 3 . . . 1 . Reactor 1 | . . . . . . . . . . . . . . . 1 Propulsion 24 | 2 3 . . 1 5 1 2 . 1 4 . . 2 . 3 Treads . | . . . . . . . . . . . . . . . . Leg 2 | 2 . . . . . . . . . . . . . . . Wheel 1 | . 1 . . . . . . . . . . . . . . Hover . | . . . . . . . . . . . . . . . . Flight 21 | . 2 . . 1 5 1 2 . 1 4 . . 2 . 3 Utility 26 | 2 2 . 2 . 1 4 . . 2 2 . . 4 4 3 Device 19 | 1 2 . 1 . . 2 . . 1 2 . . 4 4 2 Storage 3 | 1 . . 1 . 1 . . . . . . . . . . Processor 2 | . . . . . . 1 . . 1 . . . . . . Hackware 1 | . . . . . . . . . . . . . . . 1 Protection 1 | . . . . . . 1 . . . . . . . . . Artifact . | . . . . . . . . . . . . . . . . Weapon 25 | 2 . . 1 1 7 2 4 . 2 2 . . . 2 2 Energy Gun 6 | 1 . . . . . 2 . . . . . . . 2 1 Energy Cannon 2 | . . . . . 1 . . . . 1 . . . . . Ballistic Gun 12 | 1 . . 1 1 5 . 3 . 1 . . . . . . Ballistic Cannon 1 | . . . . . . . . . . . . . . . 1 Launcher 2 | . . . . . . . 1 . . 1 . . . . . Special Weapon . | . . . . . . . . . . . . . . . . Impact Weapon 2 | . . . . . 1 . . . 1 . . . . . . Slashing Weapon . | . . . . . . . . . . . . . . . . Piercing Weapon . | . . . . . . . . . . . . . . . . Special Melee Weapon . | . . . . . . . . . . . . . . . . Unidentified Prototypes 1 | . . . 1 . . . . . . . . . . . . Parts Lost 38 | . . . . . 3 1 2 . . 2 . . . 13 17 Power 4 | . . . . . . . . . . . . . . 2 2 Propulsion 20 | . . . . . 1 1 2 . . 2 . . . 9 5 Utility 9 | . . . . . . . . . . . . . . 1 8 Weapon 5 | . . . . . 2 . . . . . . . . 1 2 Highest Loss Streak 10 | . . . . . 3 1 1 . . 1 . . . 10 8 To Critical Strikes . | . . . . . . . . . . . . . . . . Average Backups 26 | 5 6 5 4 7 20 35 33 34 37 39 39 40 39 39 31 Power 1 | . 1 . . . 1 1 1 1 3 4 4 4 4 3 1 Propulsion 3 | 3 3 3 2 3 2 4 1 2 1 1 3 3 5 5 . Utility 11 | . . . 1 3 9 10 11 11 14 18 20 21 17 18 18 Weapon 8 | . 1 2 . 1 7 16 15 16 15 13 11 11 11 10 9 Tool/Special . | . . . . . . . . . . . . . . . . Unused Backups 56 | . 6 . . . 3 6 1 1 6 7 3 . 5 1 17 Power 1 | . 1 . . . . . . . . . . . . . . Propulsion 6 | . 3 . . . 1 1 . . 1 . . . . . . Utility 31 | . 1 . . . 1 3 . 1 2 5 1 . 4 . 13 Weapon 15 | . 1 . . . 1 2 1 . 2 1 2 . 1 1 3 Tool/Special 3 | . . . . . . . . . 1 1 . . . . 1 Average Slot Usage (%) 85 | . 96 85 95 100 79 82 84 84 85 84 87 88 79 75 46 Engine 7 | . 14 14 14 14 9 7 7 7 5 6 . . 4 3 . Core 2 | . . . . . . . . . . 4 11 11 5 5 1 Flight 32 | . 5 28 28 28 44 37 38 38 40 40 41 41 31 29 10 Device 10 | . 15 28 18 14 . 5 7 7 6 5 5 5 14 14 16 Storage 7 | . 11 . 8 14 8 7 7 7 6 5 5 5 5 5 3 Processor 5 | . . . . . . 6 7 7 12 11 11 11 10 10 6 Ballistic Gun 10 | . 14 14 24 28 16 6 6 . 5 5 5 5 . . . Impact Weapon 2 | . . . . . 1 3 2 7 6 2 4 5 5 3 . Peak Build Rating 120 | 7 8 8 19 20 53 63 64 64 70 84 88 88 112 120 103 Average Rating 59 | 5 6 8 16 19 44 58 58 60 67 76 87 88 109 110 85 On Entrance 50 | . 7 8 8 19 20 53 58 59 61 69 84 88 88 112 81 Naked Turns . | . . . . . . . . . . . . . . . . Heaviest Build 44 | 12 12 7 28 28 14 24 20 20 22 31 31 31 34 44 27 Greatest Support 39 | 20 20 8 8 8 20 20 20 20 24 31 31 31 39 39 35 Greatest Overweight (x) 5 | . 2 . 3 3 . 1 1 . . 1 . . . 1 5 Average Overweight (x) . | . . . . 3 . . . . . . . . . . . Largest Inventory Capacity 40 | 8 8 5 15 15 40 40 40 40 40 40 40 40 40 40 40 Average Capacity 31 | 7 7 5 11 15 39 40 40 40 40 40 40 40 40 40 38 Most Carried 40 | 7 8 5 12 15 39 39 36 38 40 40 40 40 40 40 38 Average Carried 27 | 5 6 5 8 12 21 35 33 34 37 39 39 40 39 39 30 Final Capacity 40 | 8 5 5 15 15 40 40 40 40 40 40 40 40 40 40 5 Final Carried 40 | 7 5 5 12 15 39 34 33 38 38 40 40 40 40 38 5 Class Distribution -------------------- 31% | Mutant 30% | Hauler-Sprinter 18% | Hauler-Scout 13% | Hauler-Ninja 3% | Hauler-Mutant Dominant Class ---------------- Mutant | -10/Materials Mutant | -10/Mines Mutant | -10/Exiles Mutant | -9/Mines Hauler-Sprinter | -8/Materials Hauler-Sprinter | -7/Factory Hauler-Sprinter | -7/Lower Caves Hauler-Sprinter | -7/Lower Caves Hauler-Scout | -6/Factory Hauler-Scout | -5/Factory Hauler-Scout | -5/Upper Caves Hauler-Scout | -5/Upper Caves Hauler-Ninja | -4/Factory Hauler-Ninja | -4/Extension Hauler-Mutant | -3/Research Resources | -11 -10 -10 -10 -9 -8 -7 -7 -7 -6 -5 -5 -5 -4 -4 -3 ----------- Run | Yrd Mat Min Exi Min Mat Fac Low Low Fac Fac Upp Upp Fac Ext Res Matter Collected 1751 | 282 130 . . 85 238 100 285 26 88 111 113 . . 276 17 Remotely . | . . . . . . . . . . . . . . . . Salvage Created 1393 | 104 211 . . 55 145 103 63 . 65 136 . . . 428 83 Parts 79 | 6 18 . . 8 8 3 3 . 3 16 . . . 8 6 Haulers Intercepted 3 | . . . . . . . . . . . . . . 3 . Recyclers Shooed 4 | 1 . . . . 2 . . . . . . . . 1 . Parts Field Recycled . | . . . . . . . . . . . . . . . . Retrieved Matter . | . . . . . . . . . . . . . . . . Parts Self-Destructed 8 | . . . . . . . 6 . . . 2 . . . . Prevented 1 | . . . . . . . 1 . . . . . . . . Kills | -11 -10 -10 -10 -9 -8 -7 -7 -7 -6 -5 -5 -5 -4 -4 -3 ------- Run | Yrd Mat Min Exi Min Mat Fac Low Low Fac Fac Upp Upp Fac Ext Res Combat Hostiles Destroyed 36 | . 7 . . 3 5 2 3 . 1 6 . . . 5 4 Guns 22 | . 7 . . 3 5 2 1 . 1 3 . . . . . AOE 12 | . . . . . . . 2 . . 2 . . . 4 4 Classes Destroyed 8 | 2 2 . . . . . . . 1 1 . . . 2 . Tunneler 1 | 1 . . . . . . . . . . . . . . . Hauler 3 | . . . . . . . . . . . . . . 3 . Recycler 2 | 1 1 . . . . . . . . . . . . . . Swarmer 28 | . 6 . . 3 3 . 3 . . 5 . . . 4 4 Grunt 5 | . 1 . . . 2 2 . . . . . . . . . Sentry 1 | . . . . . . . . . 1 . . . . . . Hunter 1 | . . . . . . . . . . 1 . . . . . Programmer 1 | . . . . . . . . . . . . . . 1 . Best Kill Streak 5 | 2 4 . . 3 3 1 2 . 1 5 . . . 4 4 Combat Bots Only 5 | . 4 . . 3 3 1 2 . 1 5 . . . 4 4 Max Kills in Single Turn 4 | 1 1 . . 1 1 1 2 . 1 3 . . . 2 4 Gunslinging . | . . . . . . . . . . . . . . . . Exploded 4 | . . . . . . . 2 . . 2 . . . 2 4 Melee . | . . . . . . . . . . . . . . . . Uniques/NPCs Destroyed . | . . . . . . . . . . . . . . . . Combat | -11 -10 -10 -10 -9 -8 -7 -7 -7 -6 -5 -5 -5 -4 -4 -3 -------- Run | Yrd Mat Min Exi Min Mat Fac Low Low Fac Fac Upp Upp Fac Ext Res Hostile Shots Fired 528 | . 44 . . 13 31 13 12 . 18 30 12 . 2 92 261 Missed 190 | . 11 . . 3 10 2 6 . 7 10 7 . 1 35 98 Hits 338 | . 33 . . 10 21 11 6 . 11 20 5 . 1 57 163 Melee 1 | . . . . . . . . . . . . . . 1 . Projectile 337 | . 33 . . 10 21 11 6 . 11 20 5 . 1 56 163 Critical Strikes 9 | . . . . . 3 1 . . . 1 . . . 2 2 Damage Taken 4793 | . 266 . . 81 288 171 89 . 35 318 99 . 17 1060 2369 Core 1707 | . 42 . . . 15 . 17 . 5 34 16 . . 272 1306 Absorbed by Shields 254 | . . . . . . . . . 44 52 . . . 154 4 Ignored by Resistances 105 | . . . . . . . . . . . . . . 105 . Regen/Repaired (Parts) 37 | . . . . . 29 . . . . 8 . . . . . Core Remaining (%) 92 | 100 . . . 83 97 . . 97 99 . . 95 . 76 . Volleys Fired 126 | 4 20 . . 5 37 10 9 . 2 12 . . . 23 4 Largest 2 | 2 2 . . 2 2 2 2 . 1 2 . . . 2 1 Hottest 160 | 60 60 . . 40 40 119 45 . 25 106 . . . 160 55 Shots Fired 219 | 8 40 . . 10 58 20 14 . 2 22 . . . 41 4 Gun 196 | 8 40 . . 10 58 20 13 . 2 18 . . . 27 . Cannon 17 | . . . . . . . . . . 3 . . . 12 2 Launcher 6 | . . . . . . . 1 . . 1 . . . 2 2 Special . | . . . . . . . . . . . . . . . . Kinetic 135 | 4 20 . . 10 58 5 13 . 2 18 . . . 3 2 Thermal 53 | 4 20 . . . . 5 . . . . . . . 24 . Explosive 6 | . . . . . . . 1 . . 1 . . . 2 2 Electromagnetic 25 | . . . . . . 10 . . . 3 . . . 12 . Robot Hit Streak 12 | 4 8 . . 1 12 6 3 . 5 6 . . . 9 1 Robot Miss Streak 5 | 1 5 . . 4 4 4 4 . . 4 . . . 2 1 Penetration Max . | . . . . . . . . . . . . . . . . Secondary Targets 5 | . 3 . . . 1 . . . . 1 . . . . . Max Gunslinging Chain 1 | . 1 . . . 1 . . . . 1 . . . . . Shots Hit Robots 132 | 5 22 . . 3 37 12 5 . 2 13 . . . 31 2 Core Hits 68 | 3 10 . . 3 16 5 5 . 2 7 . . . 11 6 Critical Kills 1 | . . . . . . . . . 1 . . . . . . Critical Parts Destroyed 1 | . . . . . 1 . . . . . . . . . . Critical Strikes 3 | . . . . . 1 . . . 1 . . . . 1 . Destroy 2 | . . . . . 1 . . . 1 . . . . . . Corrupt 1 | . . . . . . . . . . . . . . 1 . Melee Attacks 67 | . . . . . 1 4 8 . 5 10 9 . 22 1 7 Impact 67 | . . . . . 1 4 8 . 5 10 9 . 22 1 7 Slashing . | . . . . . . . . . . . . . . . . Piercing . | . . . . . . . . . . . . . . . . Sneak Attacks . | . . . . . . . . . . . . . . . . Combat Hostiles . | . . . . . . . . . . . . . . . . Follow-up Attacks . | . . . . . . . . . . . . . . . . Damage Inflicted 3147 | 59 274 . . 37 407 201 145 . 58 478 . . . 1149 339 Guns 1698 | 59 274 . . 37 407 201 63 . 58 153 . . . 446 . Cannons 511 | . . . . . . . . . . 114 . . . 354 43 Explosions 938 | . . . . . . . 82 . . 211 . . . 349 296 Melee . | . . . . . . . . . . . . . . . . Ramming . | . . . . . . . . . . . . . . . . Kinetic 995 | 37 118 . . 37 407 18 63 . 58 153 . . . 61 43 Thermal 639 | 22 156 . . . . 76 . . . . . . . 385 . Explosive 938 | . . . . . . . 82 . . 211 . . . 349 296 Electromagnetic 575 | . . . . . . 107 . . . 114 . . . 354 . Impact . | . . . . . . . . . . . . . . . . Slashing . | . . . . . . . . . . . . . . . . Piercing . | . . . . . . . . . . . . . . . . Highest Corruption 5 | . . . . . . . . . . 1 1 1 . 5 . Average Corruption 1 | . . . . . . . . . . 1 1 1 . 3 . Corruption Purged . | . . . . . . . . . . . . . . . . Corruption Blocked . | . . . . . . . . . . . . . . . . Effects 16 | . . . . . . . . . . 3 5 . . 8 . Message Errors 4 | . . . . . . . . . . 1 2 . . 1 . Matter Fused 4 | . . . . . . . . . . 2 1 . . 1 . Heat Flow Errors 1 | . . . . . . . . . . . . . . 1 . Data Loss (minor) 2 | . . . . . . . . . . . 2 . . . . Data Loss (major) 3 | . . . . . . . . . . . . . . 3 . Alerts 1 | . . . . . . . . . . . . . . 1 . Weapon Failures 1 | . . . . . . . . . . . . . . 1 . Overload Shots . | . . . . . . . . . . . . . . . . Overflow Damage 78 | . . . . . . . . . . 34 . . . 6 38 Projectiles 20 | . . . . . . . . . . 14 . . . 6 . Explosions 58 | . . . . . . . . . . 20 . . . . 38 Melee . | . . . . . . . . . . . . . . . . Knockbacks 1 | . . . . . . . . . . . . . . . 1 Impact . | . . . . . . . . . . . . . . . . Kinetic 1 | . . . . . . . . . . . . . . . 1 Secondary . | . . . . . . . . . . . . . . . . Self-Inflicted Damage 85 | . . . . . . . . . . 41 . . . . 44 Shots 2 | . . . . . . . . . . 1 . . . . 1 Rammed . | . . . . . . . . . . . . . . . . Targets Rammed . | . . . . . . . . . . . . . . . . Kicked . | . . . . . . . . . . . . . . . . Crushed . | . . . . . . . . . . . . . . . . Highest Temperature 444 | . 24 . . . 26 444 9 . 36 327 321 119 196 198 35 Average Temperature 89 | . 21 . . . 9 260 8 . 13 112 108 65 43 78 17 Received Heat Transfer 1126 | . 24 . . . 180 117 . . 11 27 . . . 278 489 Effects 11 | . . . . . . 3 . . . 5 3 . . . . Shutdowns 1 | . . . . . . 1 . . . . . . . . . Energy Bleed 4 | . . . . . . 1 . . . 1 2 . . . . Interference 5 | . . . . . . . . . . 4 1 . . . . Damage (minor) 1 | . . . . . . 1 . . . . . . . . . Siege Activations . | . . . . . . . . . . . . . . . . Martial Activations . | . . . . . . . . . . . . . . . . Shielding Activations . | . . . . . . . . . . . . . . . . Robots Disrupted . | . . . . . . . . . . . . . . . . Combat Hostiles . | . . . . . . . . . . . . . . . . Robots Corrupted 3 | . . . . . . . . . . 1 . . . 2 . Combat Hostiles 1 | . . . . . . . . . . 1 . . . . . Parts Fried 4 | . . . . . . . . . . 1 . . . 3 . Impact Corruptions . | . . . . . . . . . . . . . . . . Robots Melted 1 | . . . . . . . . . . . . . . 1 . Combat Hostiles 1 | . . . . . . . . . . . . . . 1 . Parts Melted 2 | . . . . . . . . . . . . . . 2 . Heat Transferred 1229 | 50 350 . . . . 148 . . . . . . . 681 . Parts Sabotaged . | . . . . . . . . . . . . . . . . Parts Stolen . | . . . . . . . . . . . . . . . . Parts Stripped . | . . . . . . . . . . . . . . . . Power Chain Reactions . | . . . . . . . . . . . . . . . . Alert | -11 -10 -10 -10 -9 -8 -7 -7 -7 -6 -5 -5 -5 -4 -4 -3 ------- Run | Yrd Mat Min Exi Min Mat Fac Low Low Fac Fac Upp Upp Fac Ext Res Maximum Alert Level 1 | . . . . . 1 . . . . . . . . . . Low Security (%) 99 | 100 100 100 . 100 95 100 . . 100 100 . . 100 100 100 Level 1 . | . . . . . 4 . . . . . . . . . . Level 2 . | . . . . . . . . . . . . . . . . Level 3 . | . . . . . . . . . . . . . . . . Level 4 . | . . . . . . . . . . . . . . . . Level 5 . | . . . . . . . . . . . . . . . . High Security . | . . . . . . . . . . . . . . . . Max Security . | . . . . . . . . . . . . . . . . Peak Influence 205 | 5 131 35 . 64 205 88 . . 50 104 . . 42 128 143 Initial 88 | . . 35 . . 20 88 . . . . . . 2 13 12 Average 35 | . 61 18 . 2 126 59 . . 9 38 . . 6 24 43 Influence Increases 2022 | 10 181 . . 70 516 58 160 . 65 253 90 . 151 205 263 Destroy 0b10 Robot/C 920 | . 140 . . 60 300 40 60 . 20 120 . . . 100 80 Destroy 0b10 Robot/NC 35 | 10 5 . . . 5 . . . . . . . . 15 . Destroy Leader 142 | . 20 . . 10 52 . 10 . 10 20 . . . 20 . Allied During Kill 35 | . . . . . 35 . . . . . . . . . . Successful Hack 70 | . . . . . 29 . . . . 29 . . 12 . . Disable Machine 15 | . . . . . . 15 . . . . . . . . . Destroy Structure 160 | . 1 . . . 5 3 . . 5 24 . . 34 40 48 Partial Spotted 165 | . . . . . 75 . . . 30 . . . 60 . . Lose Combat Pursuer 480 | . 15 . . . 15 . 90 . . 60 90 . 45 30 135 Influence Decreases 1987 | 10 90 91 . 18 372 218 196 . 64 197 141 2 127 209 252 Entered New Map 264 | . . 56 . . 32 108 14 . . 1 22 2 2 15 12 Time Decay 1414 | 10 90 35 . 18 310 100 157 . 64 176 119 . 125 119 91 Lost Part 304 | . . . . . 30 10 20 . . 20 . . . 75 149 Lost Ally 5 | . . . . . . . 5 . . . . . . . . Squads Dispatched 14 | . . . . . 2 2 . . 3 3 . . 2 . 2 Investigation 5 | . . . . . 2 . . . 2 1 . . . . . Extermination 4 | . . . . . . . . . 1 1 . . 2 . . Reinforcement 3 | . . . . . . . . . . 1 . . . . 2 Assault . | . . . . . . . . . . . . . . . . Garrison 2 | . . . . . . 2 . . . . . . . . . Intercept . | . . . . . . . . . . . . . . . . Searches Triggered . | . . . . . . . . . . . . . . . . Construction Impeded . | . . . . . . . . . . . . . . . . Haulers Reinforced . | . . . . . . . . . . . . . . . . Active Scanning Responses . | . . . . . . . . . . . . . . . . Cargo Convoy Interrupts . | . . . . . . . . . . . . . . . . Stealth | -11 -10 -10 -10 -9 -8 -7 -7 -7 -6 -5 -5 -5 -4 -4 -3 --------- Run | Yrd Mat Min Exi Min Mat Fac Low Low Fac Fac Upp Upp Fac Ext Res Distress Signals 4 | . 1 . . . 2 1 . . . . . . . . . Communications Jammed 17 | . . . . . . . . . . . . . . 17 . Distress Signals 17 | . . . . . . . . . . . . . . 17 . Times Spotted 106 | . 8 . . 3 20 2 9 . 2 10 8 . 3 15 26 Peak Tracking Total 11 | . 3 . . 3 4 2 4 . 2 4 5 . 2 9 11 Tactical Retreats 19 | . 1 . . . 1 . 4 . . 2 3 . 2 1 5 Traps | -11 -10 -10 -10 -9 -8 -7 -7 -7 -6 -5 -5 -5 -4 -4 -3 ------- Run | Yrd Mat Min Exi Min Mat Fac Low Low Fac Fac Upp Upp Fac Ext Res Traps Triggered 2 | . . . . . 1 . . . . . . . . 1 . Indirectly . | . . . . . . . . . . . . . . . . Trap Hack Attempts . | . . . . . . . . . . . . . . . . Triggered . | . . . . . . . . . . . . . . . . Disarmed . | . . . . . . . . . . . . . . . . Reprogrammed . | . . . . . . . . . . . . . . . . Reused . | . . . . . . . . . . . . . . . . Traps Extracted . | . . . . . . . . . . . . . . . . Installed . | . . . . . . . . . . . . . . . . Triggered . | . . . . . . . . . . . . . . . . Machines | -11 -10 -10 -10 -9 -8 -7 -7 -7 -6 -5 -5 -5 -4 -4 -3 ---------- Run | Yrd Mat Min Exi Min Mat Fac Low Low Fac Fac Upp Upp Fac Ext Res Machines Disabled 1 | . . . . . . 1 . . . . . . . . . Max in Single Turn 1 | . . . . . . 1 . . . . . . . . . Garrison Access 1 | . . . . . . . . . . . . . 1 . . Machines Repaired . | . . . . . . . . . . . . . . . . Machines Dismantled . | . . . . . . . . . . . . . . . . Machines Sabotaged . | . . . . . . . . . . . . . . . . Overloaded Fab Kills . | . . . . . . . . . . . . . . . . Hacking | -11 -10 -10 -10 -9 -8 -7 -7 -7 -6 -5 -5 -5 -4 -4 -3 --------- Run | Yrd Mat Min Exi Min Mat Fac Low Low Fac Fac Upp Upp Fac Ext Res Machines Accessed 26 | . . . 5 . 5 . . 2 2 6 1 . 3 2 . Terminals 9 | . . . . . 2 . . . 2 3 . . . 2 . Fabricators . | . . . . . . . . . . . . . . . . Repair Stations 3 | . . . . . 1 . . . . 1 . . 1 . . Recycling Units 3 | . . . . . 1 . . . . 1 . . 1 . . Scanalyzers 1 | . . . . . . . . . . 1 . . . . . Garrison Access 2 | . . . . . 1 . . . . . . . 1 . . Total Hacks 71 | . . . 30 . 12 . . 4 5 11 1 . 4 4 . Successful 58 | . . . 30 . 9 . . 4 1 10 1 . 2 1 . Failed 13 | . . . . . 3 . . . 4 1 . . 2 3 . Catastrophic 4 | . . . . . 1 . . . 1 . . . 1 1 . Database Lockouts . | . . . . . . . . . . . . . . . . Manual 10 | . . . 6 2 . . . . 2 . . . . . . Terminals 16 | . . . . . 4 . . . 5 3 . . . 4 . Fabricators . | . . . . . . . . . . . . . . . . Repair Stations 9 | . . . . . 4 . . . . 3 . . 2 . . Recycling Units 7 | . . . . . 3 . . . . 3 . . 1 . . Scanalyzers 2 | . . . . . . . . . . 2 . . . . . Garrison Access 2 | . . . . . 1 . . . . . . . 1 . . Terminal Hacks 42 | . . . 30 . 2 . . 4 1 3 1 . . 1 . Record 36 | . . . 29 . 1 . . 3 1 2 . . . . . Prototype ID Bank 1 | . . . . . 1 . . . . . . . . . . Open Door 2 | . . . . . . . . 1 . . 1 . . . . Open DSF 1 | . . . . . . . . . . 1 . . . . . Locate Traps 1 | . . . . . . . . . . . . . . 1 . Proto ID Catalog 1 | . . . 1 . . . . . . . . . . . . Fabricator Hacks . | . . . . . . . . . . . . . . . . Repair Station Hacks 8 | . . . . . 4 . . . . 3 . . 1 . . Scan Component 5 | . . . . . 2 . . . . 2 . . 1 . . Repair 3 | . . . . . 2 . . . . 1 . . . . . Recycling Unit Hacks 6 | . . . . . 3 . . . . 3 . . . . . Recycle Component 2 | . . . . . 1 . . . . 1 . . . . . Process 2 | . . . . . 1 . . . . 1 . . . . . Retrieve Matter 2 | . . . . . 1 . . . . 1 . . . . . Scanalyzer 1 | . . . . . . . . . . 1 . . . . . Insert Component 1 | . . . . . . . . . . 1 . . . . . Garrison Access Hacks 1 | . . . . . . . . . . . . . 1 . . Seal Access 1 | . . . . . . . . . . . . . 1 . . Unauthorized Hacks . | . . . . . . . . . . . . . . . . Terminals . | . . . . . . . . . . . . . . . . Fabricators . | . . . . . . . . . . . . . . . . Repair Stations . | . . . . . . . . . . . . . . . . Recycling Units . | . . . . . . . . . . . . . . . . Scanalyzers . | . . . . . . . . . . . . . . . . Garrison Access . | . . . . . . . . . . . . . . . . Data Cores Recovered . | . . . . . . . . . . . . . . . . Used . | . . . . . . . . . . . . . . . . Hacking Detections 14 | . . . . . 5 . . . 2 3 . . 2 2 . Full Trace Events 6 | . . . . . 3 . . . 2 1 . . . . . Feedback Events 1 | . . . . . . . . . . 1 . . . . . Corruption 1 | . . . . . . . . . . 1 . . . . . Feedback Blocked . | . . . . . . . . . . . . . . . . Robot Schematics Acquired . | . . . . . . . . . . . . . . . . Robots Built . | . . . . . . . . . . . . . . . . Authchips . | . . . . . . . . . . . . . . . . Time . | . . . . . . . . . . . . . . . . Total Robot Build Rating . | . . . . . . . . . . . . . . . . Part Schematics Acquired . | . . . . . . . . . . . . . . . . Parts Built . | . . . . . . . . . . . . . . . . Authchips . | . . . . . . . . . . . . . . . . Time . | . . . . . . . . . . . . . . . . Total Part Build Rating . | . . . . . . . . . . . . . . . . Parts Repaired 3 | . . . . . 2 . . . . 1 . . . . . Time 78 | . . . . . 52 . . . . 26 . . . . . Parts Recycled 2 | . . . . . 1 . . . . 1 . . . . . Recycled Matter 409 | . . . . . 253 . . . . 156 . . . . . Retrieved Matter 409 | . . . . . 253 . . . . 156 . . . . . Retrieved Components . | . . . . . . . . . . . . . . . . Parts Scanalyzed 1 | . . . . . . . . . . 1 . . . . . Part Schematics Acquired . | . . . . . . . . . . . . . . . . Parts Damaged . | . . . . . . . . . . . . . . . . Bothacking | -11 -10 -10 -10 -9 -8 -7 -7 -7 -6 -5 -5 -5 -4 -4 -3 ------------ Run | Yrd Mat Min Exi Min Mat Fac Low Low Fac Fac Upp Upp Fac Ext Res Used RIF Installer . | . . . . . . . . . . . . . . . . Robots Hacked . | . . . . . . . . . . . . . . . . Non-combat . | . . . . . . . . . . . . . . . . Combat . | . . . . . . . . . . . . . . . . Robot Hacks Applied . | . . . . . . . . . . . . . . . . Relay Couplers Released . | . . . . . . . . . . . . . . . . Fabnet Peak Effective % . | . . . . . . . . . . . . . . . . Robots Rewired . | . . . . . . . . . . . . . . . . Allies Hacked . | . . . . . . . . . . . . . . . . Hacks Repelled . | . . . . . . . . . . . . . . . . Allies | -11 -10 -10 -10 -9 -8 -7 -7 -7 -6 -5 -5 -5 -4 -4 -3 -------- Run | Yrd Mat Min Exi Min Mat Fac Low Low Fac Fac Upp Upp Fac Ext Res Total Allies . | . . . . . . . . . . . . . . . . Largest Group . | . . . . . . . . . . . . . . . . Highest-Rated Group . | . . . . . . . . . . . . . . . . Highest-Rated Ally . | . . . . . . . . . . . . . . . . Total Orders 14 | . . . 2 5 . 2 5 . . . . . . . . ROAM 4 | . . . . 3 . . 1 . . . . . . . . EXPLORE 9 | . . . 1 2 . 2 4 . . . . . . . . RETURN 1 | . . . 1 . . . . . . . . . . . . Ally Attacks 28 | . . . . . 28 . . . . . . . . . . Total Damage 1336 | . . . . . 1336 . . . . . . . . . . Kills 11 | . . . . . 11 . . . . . . . . . . Allies Corrupted . | . . . . . . . . . . . . . . . . Allies Melted . | . . . . . . . . . . . . . . . . Turrets Deployed 2 | . . . . . 2 . . . . . . . . . . Intel | -11 -10 -10 -10 -9 -8 -7 -7 -7 -6 -5 -5 -5 -4 -4 -3 ------- Run | Yrd Mat Min Exi Min Mat Fac Low Low Fac Fac Upp Upp Fac Ext Res Active Infowar (turns) 5265 | 37 279 86 345 . . 215 1020 81 356 535 455 8 688 907 253 Optics 4496 | . . . . . . 215 1020 81 356 513 455 8 688 907 253 Sensors 4113 | . 22 86 245 . . 108 942 65 349 520 455 8 539 655 119 Terrain 741 | . 29 86 294 . . . . . . . . . 149 176 7 Seismic 293 | 37 256 . . . . . . . . . . . . . . Jamming 1497 | . . . . . . . . . . . . . 651 826 20 ECM 36 | . . . . . . . . . . . . . 36 . . Robot Analysis Total . | . . . . . . . . . . . . . . . . Derelict Logs Recovered 2 | . . . . . . . 1 . . . 1 . . . . Drone Launches 11 | . . . 1 5 . 2 3 . . . . . . . . Drone Recoveries 10 | . . . 1 5 . 2 2 . . . . . . . . Exploration | -11 -10 -10 -10 -9 -8 -7 -7 -7 -6 -5 -5 -5 -4 -4 -3 ------------- Run | Yrd Mat Min Exi Min Mat Fac Low Low Fac Fac Upp Upp Fac Ext Res Turns Passed 7583 | 98 279 86 923 967 683 216 1020 81 356 563 455 8 688 907 253 Spaces Moved 6865 | 68 235 73 757 234 757 201 559 211 430 859 634 38 689 798 322 Core 46 | 17 . . . . . . . . . . . . . . 29 Treads . | . . . . . . . . . . . . . . . . Legs 168 | 51 117 . . . . . . . . . . . . . . Wheels 4 | . 4 . . . . . . . . . . . . . . Hover . | . . . . . . . . . . . . . . . . Flight 6647 | . 114 73 757 234 757 201 559 211 430 859 634 38 689 798 293 Fastest Speed 19 | 50 37 37 37 277 27 27 27 27 24 19 20 20 20 25 33 Average Speed 46 | 102 80 37 110 277 27 27 27 27 24 20 20 20 23 29 42 Slowest Speed 300 | 120 200 37 277 277 31 109 109 27 24 101 20 20 25 117 300 Overloaded Moves . | . . . . . . . . . . . . . . . . Propulsion Burnouts . | . . . . . . . . . . . . . . . . Robots Hopped 3 | . . . . . 3 . . . . . . . . . . Potential Cave-ins 11 | . . . . . . . . . . . . . 6 . 5 Cave-ins Triggered . | . . . . . . . . . . . . . . . . Exploration Rate (%) 40 | 4 33 28 92 91 39 51 98 23 12 16 70 10 12 60 7 Regions Visited 15 Branch Regions 8 Pre-discovered Areas 1 | . . . 1 . . . . . . . . . . . . Known Exits Taken 6 | . . . . . . . . . 1 1 1 1 1 1 . Unknown Exits Taken 9 | 1 1 1 1 1 1 1 1 1 . . . . . . . Scrap Searched 8 | . . . . 1 . . 4 2 . . 1 . . . . Spaces Dug 64 | . . . . . 1 3 8 . 5 10 7 . 22 1 7 Terrain Destroyed 122 | . . . . . 1 3 17 . 5 14 7 . 22 27 26 Melee 64 | . . . . . 1 3 8 . 5 10 7 . 22 1 7 Projectile 1 | . . . . . . . . . . . . . . . 1 AOE 57 | . . . . . . . 9 . . 4 . . . 26 18 Terrain Rammed . | . . . . . . . . . . . . . . . . Walls Destroyed . | . . . . . . . . . . . . . . . . Machines Disabled . | . . . . . . . . . . . . . . . . Actions | -11 -10 -10 -10 -9 -8 -7 -7 -7 -6 -5 -5 -5 -4 -4 -3 --------- Run | Yrd Mat Min Exi Min Mat Fac Low Low Fac Fac Upp Upp Fac Ext Res Total 10899 | 85 288 131 844 544 1169 331 1391 233 668 1202 954 37 1177 1426 419 Wait 3496 | . 10 59 63 301 312 100 792 15 207 273 298 . 445 555 66 Move 6844 | 67 234 72 756 233 750 200 558 210 429 858 633 37 688 797 322 Hop 3 | . . . . . 3 . . . . . . . . . . Pick Up 116 | 7 5 . 11 2 41 4 2 6 7 16 7 . 3 5 . Fast Attach 34 | 7 4 . 4 1 7 . . . 2 2 . . 1 2 4 Attach 42 | . 1 . 1 . 4 3 2 . 2 5 1 . 4 11 8 Detach 21 | . 1 . . 1 . . . . 2 3 . . 5 7 2 Swap 90 | . 2 . . 1 9 10 20 2 9 15 . . 9 7 6 Drop 42 | . 11 . 9 . 5 . . . 3 8 6 . . . . Fire 126 | 4 20 . . 5 37 10 9 . 2 12 . . . 23 4 Melee 67 | . . . . . 1 4 8 . 5 10 9 . 22 1 7 Ram . | . . . . . . . . . . . . . . . . Kick . | . . . . . . . . . . . . . . . . Crush . | . . . . . . . . . . . . . . . . Escape Stasis 18 | . . . . . . . . . . . . . . 18 . Rewire . | . . . . . . . . . . . . . . . . Trap . | . . . . . . . . . . . . . . . . Miscellaneous . | . . . . . . . . . . . . . . . . Route ------- -11/Scrapyard -10/Materials (discovered 2 exits: [*Mat] / [*Min]) -10/Mines -10/Exiles (discovered 2 exits: *Min x2) -9/Mines -8/Materials -7/Factory (discovered 3 exits: *Fac x2 / [*Low]) -7/Lower Caves -7/Lower Caves -6/Factory -5/Factory -5/Upper Caves -5/Upper Caves -4/Factory -4/Extension (discovered 2 exits: *Res / *Cet) -3/Research History --------- Turn | Location | Event 16 | -11/Scrapyard | Discovered new exit (range 15) 99 | -11/Scrapyard | Entered Materials 214 | -10/Materials | Met 8R-AWN 277 | -10/Materials | Discovered new exit (range 4) 337 | -10/Materials | Discovered new exit (range 6) 378 | -10/Materials | Entered Mines 379 | -10/Mines | Followed 8R-AWN into the Mines 396 | -10/Mines | Build established: Mutant 460 | -10/Mines | Discovered new exit (range 5) 464 | -10/Mines | Entered Exiles 472 | -10/Exiles | Discovered new exit (range 15) 479 | -10/Exiles | Welcomed by 8R-AWN 533 | -10/Exiles | Met EX-HEX 548 | -10/Exiles | Met EX-DEC 567 | -10/Exiles | Learned location of Zion (-7) 581 | -10/Exiles | Discovered new exit (range 14) 620 | -10/Exiles | Met EX-BIN 625 | -10/Exiles | Aligned with FarCom system 625 | -10/Exiles | Given EX-Vault access code 657 | -10/Exiles | Opened EX-Vault 659 | -10/Exiles | Found Prototype Device 659 | -10/Exiles | Identified Supersonic Drone Bay 682 | -10/Exiles | Found Lightpack 2.0 687 | -10/Exiles | Found Deploy-a-Sentry 696 | -10/Exiles | Warned to stay clear of 0b10 Research branches 1008 | -10/Exiles | Found Deploy-a-Sentry 1012 | -10/Exiles | Found Deploy-a-Sentry 1387 | -10/Exiles | Stole three prototypes: Supersonic Drone Bay, Lightpack 2.0, Deploy-a-Sentry 1387 | -10/Exiles | Entered Mines 1450 | -9/Mines | Discovered new exit (range 35) 2354 | -9/Mines | Entered Materials 2354 | -8/Materials | Evolved 4 slots: Propulsion x3, Utility x1 2378 | -8/Materials | DAS Turret deployed 2597 | -8/Materials | Lost 3 parts (1n2w) 2632 | -8/Materials | Build established: Hauler-Sprinter 2649 | -8/Materials | Repaired Flight Unit 2676 | -8/Materials | Repaired Flight Unit? 2894 | -8/Materials | DAS Turret deployed 3035 | -8/Materials | Discovered new exit (range 10) 3037 | -8/Materials | Entered Factory 3037 | -7/Factory | Evolved 2 slots: Utility x2 3039 | -7/Factory | FarCom data flow suspended 3050 | -7/Factory | Discovered new exit (range 44) 3060 | -7/Factory | Discovered new exit (range 164) 3067 | -7/Factory | Discovered new exit (range 113) 3102 | -7/Factory | Garrison activated, responded to threat 3253 | -7/Factory | Entered Lower Caves 3255 | -7/Lower Caves | Learned Factory emergency access door positions 3340 | -7/Lower Caves | Discovered new exit (range 106) 4273 | -7/Lower Caves | Entered another Lower Caves area 4318 | -7/Lower Caves | Discovered new exit (range 5) 4323 | -7/Lower Caves | Entered an active Warlord outpost 4335 | -7/Lower Caves | Learned Extension stockpile data 4335 | -7/Lower Caves | Learned Extension terminal intel 4354 | -7/Lower Caves | Entered Factory 4354 | -6/Factory | Evolved 2 slots: Propulsion x1, Utility x1 4602 | -6/Factory | Discovered new exit (range 12) 4651 | -6/Factory | Build established: Hauler-Scout 4710 | -6/Factory | Identified exit to Factory 4710 | -6/Factory | Entered another Factory area 4710 | -5/Factory | Evolved 2 slots: Power x1, Propulsion x1 4770 | -5/Factory | Repaired Flight Unit 5242 | -5/Factory | Discovered new exit (range 6) 5243 | -5/Factory | Identified exit to Upper Caves 5273 | -5/Factory | Entered Upper Caves 5274 | -5/Upper Caves | Identified exit to Upper Caves 5728 | -5/Upper Caves | Entered another Upper Caves area 5733 | -5/Upper Caves | Discovered new exit (range 17) 5736 | -5/Upper Caves | Identified exit to Factory 5736 | -5/Upper Caves | Entered Factory 5736 | -4/Factory | Evolved 2 slots: Utility x2 6313 | -4/Factory | Build established: Hauler-Ninja 6319 | -4/Factory | Spotted B-86 Titan 6325 | -4/Factory | Spotted B-86 Titan 6419 | -4/Factory | Discovered new exit (range 13) 6423 | -4/Factory | Identified exit to Extension 6424 | -4/Factory | Entered Extension 6425 | -4/Extension | Loaded intel: 17 terminal locations 6459 | -4/Extension | Spotted B-86 Titan 7145 | -4/Extension | Lost 3 parts (1p1n1w) 7199 | -4/Extension | Disrupted transfer network 7259 | -4/Extension | Spotted B-86 Titan 7310 | -4/Extension | Discovered new exit (range 19) 7310 | -4/Extension | Discovered new exit (range 19) 7328 | -4/Extension | Identified exit to Research 7329 | -4/Extension | Lost 10 parts (1p8n1u) 7329 | -4/Extension | Identified exit to Cetus 7331 | -4/Extension | Entered Research 7331 | -3/Research | Evolved 2 slots: Utility x2 7487 | -3/Research | Lost 4 parts (1p1n1u1w) 7553 | -3/Research | Lost 5 parts (1p1n3u) 7577 | -3/Research | Core integrity fell below 50% 7577 | -3/Research | Spotted B-86 Titan 7580 | -3/Research | Core integrity fell below 20% 7584 | -3/Research | Destroyed by S-43 Plague with Heavy Machine Gun Last Messages --------------- 07522_ Hardlight Generator destroyed. 07522_ Penetrated by Slug. 07522_ Xenon Bombardment Thruster destroyed. 07522_ Lgt. Antimatter Reactor destroyed. 07522_ Knocked back. 07522_ Adv. Sensor Array destroyed. 07522_ Imp. Recalibrator destroyed. 07564_ Field Propulsion Drive destroyed. 07564_ Adv. Hacking Suite destroyed. 07567_ Field Propulsion Drive destroyed. 07567_ Knocked back. 07568_ Xenon Bombardment Thruster destroyed. 07568_ X-77 Beamer knocked back. 07572_ Hardcell Cannon destroyed. 07573_ Adv. Weight Redist. System destroyed. 07573_ Knocked back. 07573_ Lightpack 2.0 destroyed. 07575_ Knocked back. 07576_ Acquired 1 matter. 07577_ Imp. Coolant Injector destroyed. Map ----- +----------------------------------------------------+ | #????# # "" + + #????????? | | """"" #????# # "" ####### #????????? | | """"" #????# # "" #####?# #????????? | | """"" #????# # S ## # #????????? | | ?? #????# # "" ## # #????????? | | ?????????# # "" ## + #????????? | | ##???????????# # "" ## # #????????? | | ?????????????# # ## # #????????? | | ?????????????# # ## #* #????????? | | ?????????????# ###+###### # #????????? | | ?????????????# # #????????? | | ?????????????# #########????????? | | ?????????????# #????????????????? | | ???########### #????????????????? | | ???# # ###############???##???????????? | | ???# # #?????#"""G"""###B #???????????? | | ???# !# #######""" """#;;BB##### ?????? | | ???# !!=+! !!* ?????? | | ???# ![!#]| !** ????? | | ???# [!!!![! x !*! ????? | | ???# [*!# s s s ????? | | ???# !!!###########] ????? | | ???###########?????????# s"" ????? | | ???????????????????????# "" ????? | | ???????????????????????# "Y ?????? | | ???????????????????????# @ "" = ??????? | | ???????????????????????# "" ??????? | | ?????????????????????? t #### ??????? | | ????????????????????? #??????????? | | ???????????????????? +??????????? | | ??????????????????o k #??????????? | | ????????????????? ???????????? | | ???????????????? ######### +??????????? | | ?????????????? ?????????#########??????????? | | ????????????? !! ?????????????????????????????? | | ???????????? ! ?????????????????????????????? | | ?????????? ??????????????????????????????? | | ?????????? ??????????????????????????????? | | ??????????? ???????????????????????????????? | | ??????????? ???????????????????????????????? | | ????????????? ????????????????????????????????? | | ?????????????????????????????????????????????????? | | ?????????????????????????????????????????????????? | | ?????????????????????????????????????????????????? | | ?????????????????????????????????????????????????? | | ?????????????????????????????????????????????????? | | ?????????????????????????????????????????????????? | | ?????????????????????????????????????????????????? | | ?????????????????????????????????????????????????? | | ?????????????????????????????????????????????????? | +----------------------------------------------------+ Best States ------------- Heat Dissipation 46 Coolant Potential 80 Energy Generation 32 Energy Capacity 375 Matter Stores 300 Matter Capacity 300 Sight Range 20 Robot Scan Range 16 Terrain Scan Range 20 Terrain Scan Density 10 ECM Strength 2 Jamming Range 14 Additional Mass Support 9 Armor Coverage 150 Resistance: KI 20 Resistance: TH 25 Evasion (%) 74 Offensive Hacking 14 Item Schematics ----------------- None Robot Schematics ------------------ None Fabricated ------------ Nothing Repaired ---------- Flight Unit | 5% | -8/Materials Flight Unit | 50% | -8/Materials Flight Unit | 60% | -5/Factory Alien Tech Used ----------------- None Achievements -------------- Packrat Total Silence Challenges ------------ None Game ------ Seed LegCannonCompactor Manual? 0 Play Time 02:19:40 Cumulative 26.8 hours Start 2025.10.08 @ 08:38:33 End 2025.10.08 @ 11:03:31 Sessions 1 Manual Loads 0 Difficulty Rogue Special Mode None Game No. 22 Rogue 22 Adventurer 0 Explorer 0 Win Type - Total 0 Types 0/0/0/0/0/0/0/0/0/0 Lore% 11 Gallery% 27 Achievement% 18 Wizard Run 0 Options --------- Layout 0 ASCII 0 Keyboard 1 Movement Numpad Keybinds 0 Fullscreen 1 Font 24/Smallcaps Map View 76x50 Zoom Use 0% Tactical HUD 1 Map Filters NONE Filters NONE Steam 1 RUN: 2d1488b4-6b2c-4648-b19c-27f8806ec74e